bitfinex/quotes_BTCUSD_20241001
["timestamp","ask_amount","ask_price","bid_price","bid_amount"]
[1727813586084,0.0254741,61523.0,61522.0,0.48174008]
[1727813586301,0.000819,61528.0,61522.0,0.48174008]
[1727813586302,0.000819,61528.0,61527.0,0.62401899]
[1727813586509,0.000819,61528.0,61527.0,0.82296678]
[1727813586745,0.000819,61528.0,61527.0,0.78547679]
[1727813586952,0.000819,61528.0,61527.0,0.82796678]
[1727813587168,0.000819,61528.0,61527.0,0.92193669]
[1727813587384,0.000819,61528.0,61527.0,1.00273669]
[1727813587857,0.000819,61528.0,61527.0,1.60865369]
[1727813588084,0.000819,61528.0,61527.0,1.63165369]
[1727813588327,0.000818,61537.0,61536.0,0.62901899]
[1727813588564,0.0008323,61538.0,61537.0,0.105]
[1727813588788,0.0008323,61538.0,61537.0,0.94072979]
[1727813589022,0.0008323,61538.0,61537.0,0.8982398]
[1727813589275,0.0008323,61538.0,61537.0,0.97072979]
[1727813589493,0.0008323,61538.0,61537.0,1.20048173]
[1727813589702,0.0008323,61538.0,61537.0,0.89163974]
[1727813589922,0.0008323,61538.0,61537.0,0.93612973]
[1727813590375,0.0008323,61538.0,61537.0,0.93412973]
[1727813591229,0.0008323,61538.0,61537.0,0.89163974]
[1727813591440,0.0008323,61538.0,61537.0,0.93412973]
[1727813591657,0.0008323,61538.0,61537.0,0.89962736]
[1727813591894,0.0008323,61538.0,61537.0,0.50119736]
[1727813592108,0.0008323,61538.0,61537.0,0.90593536]
[1727813592325,0.0008323,61538.0,61537.0,0.93393536]
[1727813593248,0.0008323,61538.0,61537.0,0.93593536]
[1727813593462,0.001634,61541.0,61540.0,0.035]
[1727813593672,0.001634,61541.0,61540.0,4.6211887]
[1727813593895,0.001638,61551.0,61543.0,0.0396]
[1727813594111,0.001638,61551.0,61543.0,3.2244158]
[1727813594363,0.001638,61551.0,61543.0,5.3740578]
[1727813594798,0.001638,61551.0,61543.0,4.4924158]
[1727813595004,0.001638,61551.0,61543.0,4.64886258]
[1727813595223,0.001638,61551.0,61543.0,4.63756158]
[1727813595444,0.001638,61551.0,61543.0,4.43325658]
[1727813595690,0.001638,61551.0,61543.0,4.26541158]
[1727813595919,0.001638,61551.0,61543.0,4.24941158]
[1727813596131,0.001638,61551.0,61543.0,3.19733958]
[1727813596339,0.001638,61551.0,61543.0,3.24812752]
[1727813596784,0.001636,61569.0,61550.0,0.015]
[1727813596994,0.001636,61569.0,61552.0,0.81847679]
[1727813597218,0.001636,61569.0,61552.0,5.59518379]
[1727813597430,0.001636,61569.0,61552.0,5.72445079]
[1727813597645,0.001636,61569.0,61554.0,0.0706]
[1727813597861,0.001636,61569.0,61568.0,0.44464017]
[1727813598112,0.001636,61569.0,61568.0,0.60109797]
[1727813598996,0.001636,61569.0,61568.0,0.59609797]
[1727813599667,0.001636,61569.0,61568.0,0.2564578]
[1727813600305,0.001636,61569.0,61568.0,0.1]
[1727813600520,0.001636,61569.0,61568.0,0.04396402]
[1727813600811,0.001636,61569.0,61558.0,0.33964017]
[1727813601025,0.001636,61569.0,61563.0,0.24446889]
[1727813601026,0.164056,61569.0,61563.0,0.24446889]
[1727813601262,0.00770787,61568.0,61564.0,0.1564578]
[1727813601706,0.00770787,61568.0,61555.0,0.24946889]
[1727813601707,0.00770787,61568.0,61555.0,0.24446889]
[1727813601920,0.00770787,61568.0,61562.0,0.24446889]
[1727813602131,0.00770787,61568.0,61556.0,0.1564578]
[1727813602344,0.00770787,61568.0,61555.0,0.24446889]
[1727813602572,0.326476,61569.0,61555.0,0.40092669]
[1727813602788,0.162438,61562.0,61555.0,0.24446889]
[1727813603001,0.0109258,61567.0,61555.0,0.24446889]
[1727813603217,0.0109258,61567.0,61556.0,0.02444689]
[1727813603430,0.162436,61563.0,61556.0,0.02444689]
[1727813604062,0.00325635,61564.0,61556.0,0.02444689]
[1727813604285,0.00325635,61564.0,61549.0,0.1]
[1727813604504,0.162455,61556.0,61555.0,0.1]
[1727813604716,0.162449,61558.0,61555.0,0.1]
[1727813604955,0.17012303,61556.0,61555.0,0.1]
[1727813605179,0.32486,61565.0,61545.0,0.1564578]
[1727813605180,0.324881,61561.0,61546.0,0.1]
[1727813605400,0.324881,61561.0,61553.0,0.1]
[1727813605401,0.162459,61554.0,61553.0,0.1]
[1727813605609,0.324897,61558.0,61553.0,0.1]
[1727813605838,0.162449,61558.0,61553.0,0.1]
[1727813606046,0.4813218,61565.0,61553.0,0.1]
[1727813606047,0.00760271,61557.0,61553.0,0.1]
[1727813606279,0.00325635,61560.0,61546.0,0.07726123]
[1727813606280,0.162458,61555.0,61546.0,0.07726123]
[1727813606507,0.324892,61559.0,61543.0,0.24446889]
[1727813606508,0.48463715,61554.0,61543.0,0.24446889]
[1727813606722,0.162485,61544.0,61543.0,0.24446889]
[1727813606935,0.16574135,61544.0,61543.0,0.14087403]
[1727813607177,0.00325635,61544.0,61543.0,0.14087403]
[1727813607388,0.162485,61544.0,61529.0,0.24446889]
[1727813607602,0.00325635,61543.0,61529.0,0.24446889]
[1727813608046,0.324957,61547.0,61529.0,0.24446889]
[1727813608047,0.00325635,61546.0,61529.0,0.24446889]
[1727813608274,0.00325635,61546.0,61536.0,0.24446889]
[1727813608275,0.00105814,61545.0,61536.0,0.24446889]
[1727813608561,0.162489,61543.0,61529.0,0.3028798]
[1727813608777,0.00325635,61542.0,61537.0,0.1]
[1727813609005,0.00325635,61542.0,61529.0,0.3028798]
[1727813609006,0.1564578,61541.0,61529.0,0.24446889]
[1727813609222,0.00325635,61540.0,61530.0,0.24446889]
[1727813609449,0.162519,61531.0,61530.0,0.24446889]
[1727813609667,0.162519,61531.0,61515.0,0.24446889]
[1727813609668,0.00097596,61531.0,61515.0,0.24446889]
[1727813610115,0.00325635,61532.0,61515.0,0.24446889]
[1727813610336,0.0072551,61530.0,61515.0,0.24446889]
[1727813610558,0.00325635,61529.0,61522.0,0.001636]
[1727813610779,0.325062,61527.0,61522.0,0.001636]
[1727813610990,0.16254,61523.0,61522.0,0.001636]
[1727813611441,0.16579635,61523.0,61522.0,0.001636]
[1727813611880,0.16672985,61523.0,61522.0,0.001636]
[1727813612548,0.1634735,61523.0,61522.0,0.001636]
[1727813612778,0.3199313,61523.0,61522.0,0.001636]
[1727813613012,0.32625101,61523.0,61522.0,0.001636]
[1727813613237,0.77108225,61523.0,61522.0,0.001636]
[1727813613464,0.66589118,61523.0,61522.0,0.001636]
[1727813613709,0.32625101,61523.0,61522.0,0.001636]
[1727813614169,0.66589118,61523.0,61522.0,0.001636]
[1727813614838,0.66589118,61523.0,61490.0,0.24446889]
[1727813614839,0.005,61522.0,61490.0,0.24446889]
[1727813615062,0.48771,61512.0,61511.0,0.24446889]
[1727813615283,0.162588,61505.0,61504.0,0.24446889]
[1727813615517,0.162588,61505.0,61490.0,0.24446889]
[1727813615518,0.162606,61498.0,61490.0,0.24446889]
[1727813615735,0.00325635,61498.0,61490.0,0.24446889]
[1727813615955,0.00080074,61498.0,61490.0,0.24446889]
[1727813616212,0.162607,61498.0,61490.0,0.24446889]
[1727813616432,0.00325635,61500.0,61490.0,0.26891578]
[1727813616433,0.00325635,61497.0,61490.0,0.26891578]
[1727813616669,0.00325635,61499.0,61490.0,0.26891578]
[1727813617763,0.00325635,61498.0,61490.0,0.26891578]
[1727813618435,0.00325635,61501.0,61490.0,0.26891578]
[1727813618863,0.00325635,61501.0,61491.0,0.02689158]
[1727813619579,0.1,61519.0,61498.0,0.33964017]
[1727813619810,0.24446889,61509.0,61498.0,0.33964017]
[1727813620052,0.16582535,61513.0,61500.0,0.24446889]
[1727813620270,0.16582535,61513.0,61501.0,0.05841091]
[1727813620271,0.1564578,61512.0,61501.0,0.05841091]
[1727813620499,0.00325635,61511.0,61500.0,0.24446889]
[1727813621426,0.162561,61516.0,61501.0,0.1]
[1727813621669,0.00325635,61518.0,61502.0,0.00325143]
[1727813621917,0.00325635,61520.0,61504.0,0.1]
[1727813622153,0.15971415,61520.0,61505.0,0.00325137]
[1727813622377,0.15971415,61520.0,61507.0,0.24446889]
[1727813622594,0.162552,61519.0,61506.0,0.07162443]
[1727813622819,0.162552,61519.0,61462.0,0.5]
[1727813622820,0.325153,61510.0,61501.0,0.1]
[1727813623052,0.325175,61506.0,61501.0,0.1]
[1727813623275,0.15971415,61509.0,61501.0,0.1]
[1727813623276,0.00325635,61505.0,61501.0,0.1]
[1727813624439,0.15971415,61505.0,61491.0,0.12689158]
[1727813624673,0.325187,61503.0,61497.0,0.24446889]
[1727813624887,0.00325635,61502.0,61491.0,0.1]
[1727813625519,0.325205,61500.0,61490.0,0.001638]
[1727813625738,0.162607,61498.0,61490.0,0.001638]
[1727813625928,0.00325635,61497.0,61492.0,0.1]
[1727813626137,0.00325635,61500.0,61492.0,0.1]
[1727813626345,0.00325635,61500.0,61492.0,0.13461069]
[1727813626555,0.162604,61499.0,61492.0,0.13461069]
[1727813626770,0.1564578,61502.0,61492.0,0.13461069]
[1727813626771,0.325202,61501.0,61492.0,0.13461069]
[1727813626993,0.162608,61498.0,61492.0,0.13461069]
[1727813627248,0.325202,61501.0,61490.0,0.001638]
[1727813627249,0.00121933,61497.0,61490.0,0.001638]
[1727813627486,0.325226,61496.0,61490.0,0.001638]
[1727813627702,0.00121933,61495.0,61490.0,0.001638]
[1727813627914,0.16262,61493.0,61490.0,0.001638]
[1727813628135,0.001,61503.0,61490.0,0.001638]
[1727813628136,0.15767713,61492.0,61490.0,0.001638]
[1727813628346,0.162625,61491.0,61490.0,0.001638]
[1727813628566,0.32030213,61491.0,61490.0,0.001638]
[1727813628804,0.3190828,61491.0,61490.0,0.001638]
[1727813629271,0.1564578,61491.0,61490.0,0.001638]
[1727813629495,0.32030213,61491.0,61490.0,0.001638]
[1727813629718,0.1564578,61491.0,61490.0,0.001638]
[1727813629939,0.15767713,61491.0,61490.0,0.001638]
[1727813630330,0.32030213,61491.0,61490.0,0.001638]
[1727813630555,0.3190828,61491.0,61490.0,0.001638]
[1727813634242,0.1564578,61491.0,61490.0,0.001638]
[1727813634495,0.32030213,61491.0,61490.0,0.001638]
[1727813634716,0.3190828,61491.0,61490.0,0.001638]
[1727813634936,0.34456963,61491.0,61490.0,0.001638]
[1727813635587,0.02548683,61491.0,61490.0,0.001638]
[1727813641237,0.02548683,61491.0,61468.0,0.24446889]
[1727813641238,0.5215848,61491.0,61477.0,0.24446889]
[1727813641488,0.5215848,61491.0,61489.0,0.24446889]
[1727813641489,0.15767713,61490.0,61489.0,0.24446889]
[1727813641726,0.15767713,61490.0,61477.0,0.24446889]
[1727813641727,0.15767713,61490.0,61485.0,0.24446889]
[1727813641963,0.15767713,61490.0,61477.0,0.24446889]
[1727813642448,0.162633,61488.0,61477.0,0.24446889]
[1727813642726,0.02548683,61491.0,61477.0,0.24446889]
[1727813642727,0.15767713,61487.0,61477.0,0.24446889]
[1727813643245,0.162639,61486.0,61477.0,0.24446889]
[1727813643549,0.162639,61486.0,61469.0,0.1]
[1727813643550,0.15767713,61485.0,61469.0,0.1]
[1727813643743,0.15767713,61485.0,61458.0,0.000819]
[1727813643744,0.3241068,61482.0,61470.0,0.24446889]
[1727813643978,0.162665,61476.0,61470.0,0.24446889]
[1727813644240,0.162674,61473.0,61470.0,0.24446889]
[1727813644486,0.00121933,61472.0,61470.0,0.24446889]
[1727813644986,0.00121933,61472.0,61463.0,0.24446889]
[1727813645218,0.00121933,61472.0,61463.0,0.26916108]
[1727813645445,0.00121933,61472.0,61470.0,0.00164]
[1727813646211,0.18195181,61475.0,61470.0,0.00164]
[1727813646212,0.02549401,61475.0,61470.0,0.00164]
[1727813649548,0.02549401,61475.0,61471.0,0.33964017]
[1727813649765,0.02549401,61475.0,61472.0,0.29383885]
[1727813650194,0.02549401,61475.0,61472.0,0.29058582]
[1727813650847,0.02549401,61475.0,61472.0,0.1]
[1727813651056,0.02549401,61475.0,61471.0,0.0758]
[1727813651699,0.02549401,61475.0,61470.0,0.00164]
[1727813652132,0.02168579,61475.0,61470.0,0.00164]
[1727813652344,0.00121933,61483.0,61470.0,0.00164]
[1727813652554,0.32032413,61483.0,61470.0,0.00164]
[1727813652763,0.00121933,61482.0,61470.0,0.00164]
[1727813652984,0.00121933,61482.0,61471.0,0.24446889]
[1727813653230,0.00121933,61482.0,61472.0,0.1]
[1727813654669,0.00121933,61482.0,61470.0,0.00164]
[1727813654670,0.162664,61477.0,61470.0,0.00164]
[1727813654889,0.00121933,61476.0,61471.0,0.24446889]
[1727813655099,0.16388433,61476.0,61471.0,0.24446889]
[1727813655320,0.02549151,61475.0,61471.0,0.24446889]
[1727813655522,0.02549151,61475.0,61470.0,0.00164]
[1727813655523,0.162678,61471.0,61470.0,0.00164]
[1727813655732,0.16389733,61471.0,61470.0,0.00164]
[1727813656813,0.00121933,61473.0,61470.0,0.00164]
[1727813657023,0.02549151,61475.0,61474.0,0.1]
[1727813657240,0.02549151,61475.0,61474.0,0.17009911]
[1727813657465,0.02549151,61475.0,61474.0,0.1]
[1727813658019,0.02549151,61475.0,61470.0,0.00983987]
[1727813658220,0.02549151,61475.0,61470.0,0.10983987]
[1727813658444,0.02549151,61475.0,61473.0,0.1]
[1727813660363,0.24446889,61486.0,61473.0,0.1]
[1727813660613,0.24446889,61486.0,61473.0,0.144948]
[1727813660852,0.00203933,61491.0,61473.0,0.144948]
[1727813661113,0.15849713,61491.0,61474.0,0.24446889]
[1727813661354,0.15849713,61491.0,61475.0,0.1]
[1727813661584,0.32112213,61491.0,61475.0,0.1]
[1727813661805,0.00121933,61490.0,61476.0,0.07290571]
[1727813663547,0.02548818,61487.0,61475.0,0.1]
[1727813663755,0.15767713,61486.0,61475.0,0.1]
[1727813664688,0.02548818,61487.0,61475.0,0.1]
[1727813664955,0.00121933,61490.0,61475.0,0.1]
[1727813665187,0.00121933,61490.0,61476.0,0.06946951]
[1727813665188,0.15767713,61490.0,61476.0,0.06946951]
[1727813665682,0.15767713,61490.0,61476.0,0.07184697]
[1727813666170,0.15767713,61490.0,61476.0,0.06946951]
[1727813666417,0.00121933,61490.0,61477.0,0.00237742]
[1727813666652,0.00082,61491.0,61477.0,0.052139]
[1727813666884,0.325262,61489.0,61475.0,0.24446889]
[1727813667114,0.16264,61486.0,61475.0,0.24446889]
[1727813667335,0.00121933,61485.0,61475.0,0.24446889]
[1727813667564,0.02548884,61484.0,61475.0,0.24446889]
[1727813668755,0.00121933,61483.0,61471.0,0.010586]
[1727813668964,0.00121933,61483.0,61473.0,0.1]
[1727813669141,0.1564578,61482.0,61471.0,0.010586]
[1727813669374,0.32652233,61481.0,61472.0,0.24446889]
[1727813669648,0.02548884,61484.0,61471.0,0.010586]
[1727813669649,0.162663,61477.0,61471.0,0.010586]
[1727813669872,0.00121933,61476.0,61472.0,0.24446889]
[1727813670113,0.325271,61488.0,61472.0,0.24446889]
[1727813670348,0.325279,61486.0,61473.0,0.02649306]
[1727813670566,0.325279,61486.0,61471.0,0.010586]
[1727813670567,0.162647,61483.0,61471.0,0.010586]
[1727813670811,0.00121933,61482.0,61472.0,0.24446889]
[1727813671261,0.00121933,61482.0,61471.0,0.010586]
[1727813671262,0.162655,61480.0,61471.0,0.010586]
[1727813671476,0.15767713,61479.0,61473.0,0.24446889]
[1727813671703,0.162665,61476.0,61471.0,0.010586]
[1727813671929,0.00121933,61475.0,61471.0,0.010586]
[1727813672142,0.14618433,61476.0,61471.0,0.010586]
[1727813672556,0.00082,61486.0,61471.0,0.010586]
[1727813672557,0.162675,61472.0,61471.0,0.010586]
[1727813672806,0.162673,61473.0,61471.0,0.010586]
[1727813673326,0.18816641,61473.0,61471.0,0.010586]
[1727813673536,0.02549341,61473.0,61471.0,0.010586]
[1727813673783,0.18816841,61473.0,61471.0,0.010586]
[1727813674231,0.02549341,61473.0,61471.0,0.010586]
[1727813674485,0.162671,61474.0,61471.0,0.010586]
[1727813674736,0.3191288,61474.0,61471.0,0.010586]
[1727813675172,0.1564578,61474.0,61471.0,0.010586]
[1727813675392,0.162673,61473.0,61471.0,0.010586]
[1727813675605,0.1564578,61474.0,61471.0,0.010586]
[1727813675821,0.162675,61472.0,61471.0,0.010586]
[1727813677154,0.3191328,61472.0,61471.0,0.010586]
[1727813677366,0.34462714,61472.0,61471.0,0.010586]
[1727813680261,0.3191328,61472.0,61471.0,0.010586]
[1727813681339,0.1564578,61472.0,61471.0,0.010586]
[1727813681546,0.3191328,61472.0,61471.0,0.010586]
[1727813681764,0.07141198,61484.0,61471.0,0.010586]
[1727813681996,0.00082,61486.0,61477.0,0.22730269]
[1727813682218,0.00082,61486.0,61464.0,0.24446889]
[1727813682219,0.005,61461.0,61458.0,0.000819]
[1727813682452,0.16771,61459.0,61458.0,0.00017872]
[1727813682904,0.16971,61459.0,61458.0,0.00017872]
[1727813683127,0.89071168,61459.0,61458.0,0.00017872]
[1727813683358,0.16276,61440.0,61439.0,0.001632]
[1727813683603,0.66074761,61440.0,61439.0,0.001632]
[1727813684066,0.68374761,61440.0,61439.0,0.001632]
[1727813685015,0.73830291,61440.0,61439.0,0.001632]
[1727813685235,0.98444219,61440.0,61439.0,0.001632]
[1727813685471,0.73872624,61440.0,61439.0,0.001632]
[1727813686161,0.69074761,61440.0,61439.0,0.001632]
[1727813686392,0.84719439,61440.0,61439.0,0.001632]
[1727813687497,0.89459101,61440.0,61439.0,0.001632]
[1727813687746,0.92010449,61440.0,61439.0,0.001632]
[1727813687980,0.167789,61429.0,61419.0,0.000819]
[1727813688193,0.68877661,61429.0,61419.0,0.000819]
[1727813688401,0.82476807,61429.0,61419.0,0.000819]
[1727813688612,0.69077661,61429.0,61419.0,0.000819]
[1727813689046,0.71629238,61429.0,61419.0,0.000819]
[1727813689686,0.71429238,61429.0,61419.0,0.000819]
[1727813689893,0.71429238,61429.0,61422.0,0.24446889]
[1727813689894,0.34476257,61429.0,61422.0,0.24446889]
[1727813690146,0.1564578,61429.0,61419.0,0.000819]
[1727813690363,0.3192468,61429.0,61419.0,0.000819]
[1727813690568,0.3242468,61429.0,61419.0,0.000819]
[1727813690786,0.3192468,61429.0,61419.0,0.000819]
[1727813693796,0.34476058,61429.0,61419.0,0.000819]
[1727813694482,0.18197158,61429.0,61419.0,0.000819]
[1727813694912,0.1564578,61429.0,61419.0,0.000819]
[1727813695357,0.5859987,61443.0,61419.0,0.000819]
[1727813695572,0.4773,61451.0,61427.0,0.0819]
[1727813695573,0.24446889,61434.0,61427.0,0.0819]
[1727813695782,0.1564578,61433.0,61427.0,0.0819]
[1727813696644,0.162789,61429.0,61419.0,0.000819]
[1727813696859,0.3192468,61429.0,61419.0,0.000819]
[1727813697710,0.325593,61427.0,61419.0,0.000819]
[1727813697922,0.3192558,61426.0,61419.0,0.000819]
[1727813698132,0.49798761,61426.0,61419.0,0.000819]
[1727813698348,0.325613,61423.0,61419.0,0.000819]
[1727813698561,0.162813,61420.0,61419.0,0.000819]
[1727813698774,0.3192708,61420.0,61419.0,0.000819]
[1727813699199,0.1564578,61420.0,61419.0,0.000819]
[1727813699411,0.18197328,61420.0,61419.0,0.000819]
[1727813699640,0.02551548,61420.0,61419.0,0.000819]
[1727813700110,0.02551548,61420.0,61419.0,0.03857821]
[1727813700325,0.02551548,61420.0,61419.0,0.000819]
[1727813703536,0.24446889,61427.0,61419.0,0.000819]
[1727813703749,0.1564578,61426.0,61419.0,0.000819]
[1727813704595,0.005,61446.0,61419.0,0.000819]
[1727813704876,0.24446889,61421.0,61419.0,0.000819]
[1727813705104,0.1564578,61434.0,61419.0,0.000819]
[1727813705377,0.24446889,61428.0,61419.0,0.000819]
[1727813705634,0.1564578,61434.0,61419.0,0.000819]
[1727813706398,0.162782,61432.0,61419.0,0.000819]
[1727813706682,0.1564578,61431.0,61419.0,0.000819]
[1727813706904,0.001642,61428.0,61419.0,0.000819]
[1727813707159,0.24611089,61428.0,61419.0,0.000819]
[1727813707673,0.24446889,61421.0,61419.0,0.000819]
[1727813707918,0.3192708,61420.0,61419.0,0.000819]
[1727813708162,0.50435881,61414.0,61413.0,0.001634]
[1727813708402,0.66081661,61414.0,61413.0,0.001634]
[1727813709404,0.34480941,61414.0,61413.0,0.001634]
[1727813710415,0.3192868,61414.0,61413.0,0.001634]
[1727813711885,0.1564578,61414.0,61413.0,0.001634]
[1727813712588,0.1564578,61414.0,61403.0,0.24446889]
[1727813712835,0.24446889,61418.0,61413.0,0.002]
[1727813713064,0.57010589,61418.0,61413.0,0.002]
[1727813713580,0.57010589,61418.0,61400.0,0.1872]
[1727813713581,0.325651,61416.0,61400.0,0.1872]
[1727813713859,0.325651,61416.0,61398.0,0.001638]
[1727813713860,0.651368,61410.0,61398.0,0.001638]
[1727813714127,0.162829,61414.0,61413.0,0.003]
[1727813714377,0.432129,61414.0,61413.0,0.003]
[1727813714627,0.162869,61399.0,61398.0,0.001638]
[1727813715166,0.3193268,61399.0,61398.0,0.001638]
[1727813715410,0.41640548,61399.0,61398.0,0.001638]
[1727813715663,0.75793529,61399.0,61398.0,0.001638]
[1727813715899,0.3203268,61399.0,61398.0,0.001638]
[1727813717710,0.167874,61397.0,61387.0,0.0001]
[1727813717929,0.3493318,61397.0,61387.0,0.0001]
[1727813718147,0.50442781,61388.0,61387.0,0.0001]
[1727813718368,0.66088561,61388.0,61387.0,0.0001]
[1727813719004,0.68641592,61388.0,61387.0,0.0001]
[1727813719681,0.18198811,61388.0,61387.0,0.0001]
[1727813719900,0.18398811,61388.0,61387.0,0.0001]
[1727813720178,0.18198811,61388.0,61387.0,0.0001]
[1727813720389,0.1564578,61388.0,61387.0,0.0001]
[1727813721959,0.1574578,61388.0,61387.0,0.0001]
[1727813722441,0.1564578,61388.0,61387.0,0.0001]
[1727813723234,0.325717,61403.0,61387.0,0.0001]
[1727813723495,0.24446889,61388.0,61387.0,0.0001]
[1727813723785,0.02552736,61388.0,61387.0,0.0001]
[1727813723990,0.1564578,61388.0,61387.0,0.0001]
[1727813724285,0.02552866,61388.0,61387.0,0.0001]
[1727813724747,0.24446889,61400.0,61388.0,0.0805]
[1727813725257,0.24446889,61407.0,61395.0,0.34152981]
[1727813725496,0.24446889,61398.0,61395.0,0.34152981]
[1727813725755,0.24446889,61407.0,61395.0,0.34152981]
[1727813726214,0.24446889,61407.0,61391.0,0.1]
[1727813726461,0.002642,61399.0,61392.0,0.1564578]
[1727813726692,0.002642,61399.0,61393.0,0.06804876]
[1727813726942,0.003642,61399.0,61395.0,0.014]
[1727813727182,0.002642,61399.0,61395.0,0.014]
[1727813727427,0.002642,61399.0,61396.0,0.03385066]
[1727813727428,0.001642,61399.0,61396.0,0.03385066]
[1727813727958,0.001642,61399.0,61390.0,0.34152981]
[1727813727959,0.02716405,61399.0,61388.0,0.1805]
[1727813728210,0.02716405,61399.0,61393.0,0.24446889]
[1727813728507,0.02716405,61399.0,61395.0,0.34152981]
[1727813728508,0.02816405,61399.0,61395.0,0.34152981]
[1727813728750,0.02816405,61399.0,61397.0,0.0793]
[1727813729001,0.24446889,61414.0,61413.0,0.34152981]
[1727813729234,0.24446889,61414.0,61413.0,0.42082981]
[1727813729498,0.24446889,61414.0,61413.0,0.12138298]
[1727813729765,0.24446889,61421.0,61413.0,0.0793]
[1727813730007,0.001642,61428.0,61421.0,0.1]
[1727813730224,0.001642,61428.0,61425.0,0.002]
[1727813730225,0.24446889,61427.0,61425.0,0.002]
[1727813730453,0.24446889,61427.0,61426.0,0.62458513]
[1727813730698,0.24446889,61427.0,61426.0,0.62132981]
[1727813730909,0.00082,61440.0,61428.0,0.005]
[1727813731134,0.24446889,61434.0,61430.0,0.1]
[1727813731368,0.00082,61440.0,61432.0,0.1]
[1727813731576,0.00082,61440.0,61438.0,0.34152981]
[1727813731808,0.01799063,61439.0,61438.0,0.34152981]
[1727813732032,0.00082,61440.0,61438.0,0.34152981]
[1727813732910,0.00182,61440.0,61438.0,0.35552981]
[1727813733142,0.00182,61440.0,61438.0,0.52598761]
[1727813733392,0.00082,61440.0,61439.0,0.1]
[1727813733595,0.00182,61440.0,61439.0,0.16119876]
[1727813734048,0.00182,61440.0,61439.0,0.31982893]
[1727813734303,0.00182,61440.0,61439.0,0.58435656]
[1727813735409,0.00282,61440.0,61439.0,0.44189876]
[1727813735639,0.00182,61440.0,61439.0,0.42789876]
[1727813735892,0.00082,61440.0,61439.0,0.42789876]
[1727813736077,0.00182,61440.0,61439.0,0.59835656]
[1727813736358,0.00082,61440.0,61439.0,0.44189876]
[1727813736577,0.00182,61440.0,61439.0,0.45589876]
[1727813736843,0.00182,61440.0,61439.0,0.61235656]
[1727813737087,0.00182,61440.0,61439.0,0.27099876]
[1727813737320,0.00182,61440.0,61439.0,0.1098]
[1727813738029,0.00182,61440.0,61439.0,0.0958]
[1727813738532,0.00182,61440.0,61439.0,0.1098]
[1727813739036,0.00182,61440.0,61439.0,0.2662578]
[1727813739992,0.00182,61440.0,61439.0,0.3662578]
[1727813740223,0.00182,61440.0,61439.0,0.43823656]
[1727813741225,0.00182,61440.0,61439.0,0.44023656]
[1727813741482,0.02732072,61440.0,61439.0,0.77523956]
[1727813741747,0.24446889,61450.0,61440.0,0.19655818]
[1727813741968,0.24446889,61450.0,61448.0,0.34152981]
[1727813742220,0.01761955,61449.0,61448.0,0.34152981]
[1727813742453,0.00164,61461.0,61448.0,0.34152981]
[1727813742704,0.24446889,61451.0,61448.0,0.34152981]
[1727813742960,0.00164,61461.0,61448.0,0.34152981]
[1727813743220,0.01761955,61450.0,61448.0,0.34152981]
[1727813743462,0.00164,61461.0,61448.0,0.35552981]
[1727813743463,0.001,61449.0,61448.0,0.35552981]
[1727813743698,0.00164,61461.0,61443.0,0.44152981]
[1727813743941,0.01761955,61449.0,61445.0,0.1]
[1727813744161,0.00164,61461.0,61446.0,0.09424565]
[1727813744409,0.00164,61461.0,61446.0,0.25070345]
[1727813744673,0.01761955,61457.0,61446.0,0.25070345]
[1727813744893,0.01761955,61457.0,61448.0,0.014]
[1727813745135,0.02549943,61456.0,61449.0,0.03647035]
[1727813745868,0.00052797,61455.0,61449.0,0.03647035]
[1727813746334,0.00052797,61455.0,61449.0,0.04847035]
[1727813746808,0.00052797,61455.0,61449.0,0.05947035]
[1727813747037,0.24446889,61453.0,61449.0,0.023]
[1727813747271,0.00052797,61455.0,61449.0,0.023]
[1727813747492,0.00054398,61452.0,61451.0,0.24446889]
[1727813747722,0.02549943,61456.0,61449.0,0.011]
[1727813748227,0.02549943,61456.0,61449.0,0.013]
[1727813748501,0.01719472,61455.0,61449.0,0.026]
[1727813748795,0.01719472,61455.0,61449.0,0.03675298]
[1727813749007,0.01719472,61455.0,61449.0,0.024]
[1727813749449,0.00054929,61454.0,61448.0,0.34152981]
[1727813749666,0.00054929,61454.0,61449.0,0.01625447]
[1727813749879,0.00054929,61454.0,61449.0,0.02925447]
[1727813750312,0.00054929,61454.0,61450.0,0.03707843]
[1727813750546,0.00054929,61454.0,61451.0,0.00325429]
[1727813750767,0.02549943,61456.0,61453.0,0.34152981]
[1727813751911,0.02549943,61456.0,61450.0,0.03707843]
[1727813752124,0.02549943,61456.0,61453.0,0.013]
[1727813752364,0.02549943,61456.0,61453.0,0.06356082]
[1727813752572,0.02549943,61456.0,61453.0,0.07656082]
[1727813753006,0.02549943,61456.0,61453.0,0.05056082]
[1727813754344,0.02549943,61456.0,61453.0,0.06256082]
[1727813755044,0.001638,61458.0,61454.0,0.00325412]
[1727813755270,0.001638,61458.0,61455.0,0.14554789]
[1727813755487,0.001638,61458.0,61457.0,0.1805]
[1727813755710,0.001638,61458.0,61457.0,1.11719413]
[1727813755931,0.24446889,61478.0,61477.0,0.34152981]
[1727813756402,0.0147911,61478.0,61477.0,0.34152981]
[1727813756627,0.0147911,61478.0,61477.0,0.37568279]
[1727813756852,0.00082,61482.0,61479.0,0.0799]
[1727813757290,0.00082,61482.0,61480.0,0.002]
[1727813757522,0.00082,61482.0,61481.0,0.1564578]
[1727813757752,0.00082,61486.0,61483.0,0.002]
[1727813757991,0.00082,61486.0,61485.0,0.34152981]
[1727813758210,0.00082,61486.0,61485.0,0.92708461]
[1727813758658,0.00082,61486.0,61485.0,0.60298761]
[1727813758879,0.00082,61486.0,61485.0,0.67507147]
[1727813759098,0.00082,61486.0,61485.0,0.67007147]
[1727813759541,0.00082,61486.0,61485.0,0.68407147]
[1727813759757,0.00082,61486.0,61485.0,0.69807147]
[1727813759979,0.00082,61486.0,61485.0,0.54161367]
[1727813760196,0.00082,61486.0,61485.0,0.69807147]
[1727813760661,0.00082,61486.0,61485.0,0.68407147]
[1727813760881,0.00082,61486.0,61485.0,0.014]
[1727813761101,0.00082,61486.0,61485.0,0.028]
[1727813761784,0.00082,61486.0,61485.0,0.014]
[1727813762915,0.00082,61486.0,61479.0,0.08802049]
[1727813763134,0.00082,61486.0,61485.0,0.014]